fUSD/lending_fUSD_20240212
["ID","MTS","AMOUNT","RATE_DAILY","PERIOD"]
[313834707,1707748286734,-274.20500688,0.00025313,2]
[313834708,1707748286745,-500.0,0.00025313,2]
[313834709,1707748286754,-500.0,0.00025313,2]
[313834710,1707748286763,-500.0,0.00025313,2]
[313834711,1707748286773,-467.96051423,0.00025313,2]
[313834712,1707748286783,-500.0,0.00025313,2]
[313834713,1707748286793,-500.0,0.00025313,7]
[313834714,1707748286803,-500.0,0.00025313,2]
[313834715,1707748286813,-500.0,0.00025313,2]
[313834716,1707748286822,-526.84,0.00025313,2]
[313834717,1707748286831,-500.0,0.00025313,2]
[313834718,1707748286841,-373.66108912,0.00025313,2]
[313834719,1707748286850,-529.5,0.00025313,2]
[313834720,1707748286861,-500.0,0.00025313,2]
[313834721,1707748286870,-652.95,0.00025313,2]
[313834722,1707748286881,-651.67,0.00025313,2]
[313834723,1707748286890,-567.71,0.00025313,2]
[313834724,1707748286899,-500.0,0.00025313,2]
[313834725,1707748286910,-784.11,0.00025313,2]
[313834726,1707748286921,-524.91,0.00025313,2]
[313834727,1707748286930,-500.0,0.00025313,2]
[313834728,1707748286941,-872.77,0.00025313,2]
[313834729,1707748286951,-639.25,0.00025313,2]
[313834730,1707748286960,-500.0,0.00025313,2]
[313834731,1707748286970,-183.93402485,0.00025313,2]
[313834732,1707748286980,-500.0,0.00025313,2]
[313834733,1707748286989,-500.0,0.00025313,2]
[313834734,1707748286999,-1296.69,0.00025313,2]
[313834735,1707748287008,-500.0,0.00025313,2]
[313834736,1707748287018,-517.62,0.00025313,2]
[313834737,1707748287027,-4333.7,0.00025313,2]
[313834738,1707748287037,-1895.9,0.00025313,2]
[313834739,1707748287047,-923.15,0.00025313,2]
[313834740,1707748287056,-1121.1,0.00025313,2]
[313834741,1707748287067,-500.0,0.00025313,2]
[313834742,1707748287076,-500.0,0.00025313,2]
[313834743,1707748287086,-4100.88,0.00025313,2]
[313834744,1707748287096,-500.0,0.00025313,2]
[313834745,1707748287105,-791.85,0.00025313,2]
[313834746,1707748287115,-500.0,0.00025313,2]
[313834747,1707748287125,-1394.8,0.00025313,2]
[313834748,1707748287134,-575.24,0.00025313,2]
[313834749,1707748287143,-715.53,0.00025313,2]
[313834750,1707748287153,-637.77,0.00025313,2]
[313834751,1707748287162,-1763.67,0.00025313,2]
[313834752,1707748287172,-2032.84,0.00025313,2]
[313834753,1707748287182,-686.28,0.00025313,2]
[313834754,1707748287191,-689.11,0.00025313,2]
[313834755,1707748287201,-1500.18,0.00025313,2]
[313834756,1707748287211,-4391.98,0.00025313,2]
[313834757,1707748287221,-500.0,0.00025313,2]
[313834758,1707748287231,-637.5,0.00025313,2]
[313834759,1707748287241,-1040.77,0.00025313,2]
[313834760,1707748287251,-500.0,0.00025313,2]
[313834761,1707748287261,-1065.07,0.00025313,2]
[313834762,1707748287271,-500.0,0.00025313,2]
[313834763,1707748287281,-596.16,0.00025313,2]
[313834764,1707748287290,-500.0,0.00025313,2]
[313834765,1707748287300,-706.62,0.00025313,2]
[313834766,1707748287313,-500.0,0.00025313,2]
[313834767,1707748287322,-4062.09,0.00025313,2]
[313834768,1707748287332,-1058.56,0.00025313,2]
[313834769,1707748287341,-721.91,0.00025313,2]
[313834770,1707748287353,-3863.5,0.00025313,2]
[313834771,1707748287363,-500.0,0.00025313,2]
[313834772,1707748287373,-559.05,0.00025313,2]
[313834773,1707748287384,-500.0,0.00025313,2]
[313834774,1707748287394,-500.0,0.00025313,2]
[313834775,1707748287404,-363.45783767,0.00025313,2]
[313834776,1707748287415,-5323.17,0.00025313,2]
[313834777,1707748287425,-500.0,0.00025313,2]
[313834778,1707748287434,-500.0,0.00025313,2]
[313834779,1707748287444,-1797.81,0.00025313,2]
[313834780,1707748287515,-500.0,0.00025313,2]
[313834781,1707748287525,-500.0,0.00025313,2]
[313834782,1707748287535,-1838.78,0.00025313,2]
[313834783,1707748287544,-683.21,0.00025313,2]
[313834784,1707748287554,-330.80507037,0.00025313,2]
[313834785,1707748287564,-508.34,0.00025313,2]
[313834786,1707748287574,-183.68317707,0.00025313,2]
[313834787,1707748287584,-945.99,0.00025313,2]
[313834788,1707748287594,-500.0,0.00025313,2]
[313834789,1707748287604,-874.97,0.00025313,2]
[313834790,1707748287613,-500.0,0.00025313,2]
[313834791,1707748287623,-2272.98,0.00025313,2]
[313834792,1707748287633,-1286.15,0.00025313,2]
[313834793,1707748287642,-500.0,0.00025313,2]
[313834794,1707748287652,-502.26,0.00025313,2]
[313834795,1707748287662,-1140.72,0.00025313,2]
[313834796,1707748287671,-639.88,0.00025314,2]
[313834797,1707748287680,-500.0,0.00025314,2]
[313834798,1707748287690,-524.07,0.00025314,2]
[313834799,1707748287699,-500.0,0.00025314,2]
[313834800,1707748287709,-859.17,0.00025314,2]
[313834801,1707748287718,-8642.09,0.00025314,2]
[313834802,1707748287728,-500.0,0.00025314,2]
[313834803,1707748287737,-500.0,0.00025314,2]
[313834804,1707748287747,-907.74,0.00025314,2]
[313834805,1707748287756,-659.8,0.00025314,2]
[313834806,1707748287766,-6204.93,0.00025314,2]
[313834807,1707748287776,-500.0,0.00025314,2]
[313834808,1707748287786,-500.0,0.00025314,2]
[313834809,1707748287795,-500.0,0.00025314,2]
[313834810,1707748287805,-1134.83,0.00025314,2]
[313834811,1707748287814,-1147.71,0.00025314,2]
[313834812,1707748287824,-500.0,0.00025314,2]
[313834813,1707748287833,-500.0,0.00025314,2]
[313834814,1707748287842,-2142.38,0.00025314,2]
[313834815,1707748287851,-1578.9,0.00025314,2]
[313834816,1707748287861,-500.0,0.00025314,2]
[313834817,1707748287870,-628.61,0.00025314,2]
[313834818,1707748287879,-1527.65,0.00025314,2]
[313834819,1707748287889,-1715.49,0.00025314,2]
[313834820,1707748287898,-500.0,0.00025314,2]
[313834821,1707748287907,-1537.51,0.00025314,2]
[313834822,1707748287916,-500.0,0.00025314,2]
[313834823,1707748287925,-646.32,0.00025314,2]
[313834824,1707748287934,-1757.6,0.00025314,2]
[313834825,1707748287943,-2089.11,0.00025314,2]
[313834826,1707748287953,-1017.68,0.00025314,2]
[313834827,1707748287962,-1161.37,0.00025314,2]
[313834828,1707748287971,-590.03,0.00025314,2]
[313834829,1707748287981,-10286.15,0.00025314,2]
[313834830,1707748287991,-500.0,0.00025314,2]
[313834831,1707748288000,-1897.21,0.00025314,2]
[313834832,1707748288010,-500.0,0.00025314,2]
[313834833,1707748288020,-935.54,0.00025314,2]
[313834834,1707748288030,-500.0,0.00025314,2]
[313834835,1707748288039,-7934.79,0.00025314,2]
[313834836,1707748288049,-500.0,0.00025314,2]
[313834837,1707748288058,-500.0,0.00025314,2]
[313834838,1707748288067,-500.0,0.00025314,2]
[313834839,1707748288077,-320.86052161,0.00025314,2]
[313834840,1707748288086,-500.0,0.00025314,2]
[313834841,1707748288095,-500.0,0.00025314,2]
[313834842,1707748288104,-2190.55,0.00025314,2]
[313834843,1707748288115,-500.0,0.00025314,2]
[313834844,1707748288124,-1376.25,0.00025314,2]
[313834845,1707748288134,-500.0,0.00025314,2]
[313834846,1707748288143,-6405.5,0.00025314,2]
[313834847,1707748288152,-500.0,0.00025314,2]
[313834848,1707748288161,-692.19,0.00025314,2]
[313834849,1707748288170,-4161.56,0.00025314,2]
[313834850,1707748288181,-562.21,0.00025314,2]
[313834851,1707748288190,-79354.7807999,0.00025354,2]
[313834852,1707748288199,-2857.8912275,0.00025354,2]
[313834853,1707748288209,-79354.7807999,0.00025354,2]
[313834854,1707748288218,-500.0,0.00025371,2]
[313834855,1707748288227,-1262.54,0.00025395,2]
[313834856,1707748288236,-1207.47,0.00025395,2]
[313834857,1707748288245,-500.0,0.00025395,2]
[313834858,1707748288255,-500.0,0.00025395,2]
[313834859,1707748288263,-581.28,0.00025395,2]
[313834860,1707748288273,-500.0,0.00025395,2]
[313834861,1707748288282,-500.0,0.00025395,2]
[313834862,1707748288292,-251.0947481,0.00025395,2]
[313834863,1707748288302,-500.0,0.00025395,2]
[313834864,1707748288315,-500.0,0.00025395,2]
[313834865,1707748288325,-500.0,0.00025395,2]
[313834866,1707748288334,-500.0,0.00025395,2]
[313834867,1707748288343,-500.0,0.00025395,2]
[313834868,1707748288352,-662.95,0.00025395,2]
[313834869,1707748288362,-500.0,0.00025395,2]
[313834870,1707748288371,-500.0,0.00025395,2]
[313834871,1707748288380,-581.67647421,0.00025395,2]
[313834872,1707748288390,-500.0,0.00025395,2]
[313834873,1707748288400,-500.0,0.00025395,2]
[313834874,1707748288410,-500.0,0.00025395,2]
[313834875,1707748288419,-500.0,0.00025395,2]
[313834876,1707748288429,-500.0,0.00025395,2]
[313834877,1707748288439,-785.31,0.00025395,2]
[313834878,1707748288448,-500.0,0.00025395,2]
[313834879,1707748288460,-500.0,0.00025395,2]
[313834880,1707748288470,-1057.6,0.00025395,2]
[313834881,1707748288479,-623.82,0.00025395,2]
[313834882,1707748288488,-500.0,0.00025395,2]
[313834883,1707748288498,-500.0,0.00025395,2]
[313834884,1707748288507,-681.61,0.00025395,2]
[313834885,1707748288518,-500.0,0.00025395,2]
[313834886,1707748288527,-1004.0,0.00025395,2]
[313834887,1707748288536,-500.0,0.00025395,2]
[313834888,1707748288547,-300.99,0.00025395,2]
[313834889,1707748288556,-500.0,0.00025395,2]
[313834890,1707748288565,-500.0,0.00025401,2]
[313834891,1707748288574,-359.77904379,0.00025486,2]
[313834892,1707748288583,-500.0,0.00025486,2]
[313834893,1707748288593,-500.0,0.00025486,2]
[313834894,1707748288602,-1366.1,0.00025486,2]
[313834895,1707748288611,-500.0,0.00025486,2]
[313834896,1707748288621,-200.0,0.000255,2]
[313834897,1707748288630,-1000.0,0.000255,2]
[313834898,1707748288640,-5812.6876084,0.00025501,2]
[313834899,1707748288649,-2110.37,0.00025502,2]
[313834900,1707748288659,-6142.49,0.00025502,2]
[313834901,1707748288669,-500.0,0.00025502,2]
[313834902,1707748288680,-676.37,0.00025502,2]
[313834903,1707748288689,-1791.31,0.00025502,2]
[313834904,1707748288698,-564.38,0.00025502,2]
[313834905,1707748288707,-2125.32,0.00025502,2]
[313834906,1707748288717,-500.0,0.00025502,2]
[313834907,1707748288726,-746.12,0.00025502,2]
[313834908,1707748288735,-6506.4,0.00025502,2]
[313834909,1707748288745,-746.22,0.00025502,2]
[313834910,1707748288754,-500.0,0.00025502,2]
[313834911,1707748288763,-500.0,0.00025502,2]
[313834912,1707748288774,-500.0,0.00025502,2]
[313834913,1707748288783,-500.0,0.00025502,2]
[313834914,1707748288792,-1926.94,0.00025502,2]
[313834915,1707748288802,-500.0,0.00025502,2]
[313834916,1707748288811,-1829.63,0.00025502,2]
[313834917,1707748288821,-504.23,0.00025502,2]
[313834918,1707748288830,-2230.81,0.00025502,2]
[313834919,1707748288840,-500.0,0.00025502,2]
[313834920,1707748288850,-500.0,0.00025502,2]
[313834921,1707748288859,-5597.11,0.00025502,2]
[313834922,1707748288867,-2899.6,0.00025502,2]
[313834923,1707748288877,-500.0,0.00025502,2]
[313834924,1707748288886,-828.89,0.00025502,2]
[313834925,1707748288895,-150.0,0.00025549,2]
[313834926,1707748288905,-202.0,0.00025549,2]
[313834927,1707748288914,-500.0,0.00025553,2]
[313834928,1707748288924,-78853.3724999,0.00025567,2]
[313834929,1707748288934,-2042.507914,0.00025567,2]
[313834930,1707748288944,-13024.435829,0.0002557,2]
[313834931,1707748288953,-2949.899988,0.0002557,2]
[313834932,1707748288962,-838.63,0.00025573,2]
[313834933,1707748288971,-342.95,0.00025573,2]
[313834934,1707748288980,-421.94,0.00025573,2]
[313834935,1707748288990,-150.0,0.00025573,2]
[313834936,1707748288999,-418.37,0.00025573,2]
[313834937,1707748289008,-418.37,0.00025573,2]
[313834938,1707748289017,-836.63,0.00025573,2]
[313834939,1707748289026,-2611.65,0.00025584,2]
[313834940,1707748289035,-1871.51,0.00025584,2]
[313834941,1707748289044,-15228.44,0.00025584,2]
[313834942,1707748289052,-1123.04,0.00025584,2]
[313834943,1707748289062,-500.0,0.00025584,2]
[313834944,1707748289070,-669.38,0.00025584,2]
[313834945,1707748289079,-500.0,0.00025584,2]
[313834946,1707748289089,-7454.03,0.00025584,2]
[313834947,1707748289098,-656.99,0.00025584,2]
[313834948,1707748289107,-1132.61,0.00025584,2]
[313834949,1707748289117,-500.0,0.00025584,2]
[313834950,1707748289126,-607.87,0.00025584,2]
[313834951,1707748289135,-2975.67,0.00025584,2]
[313834952,1707748289144,-1380.57,0.00025584,2]
[313834953,1707748289154,-1785.04,0.00025584,2]
[313834954,1707748289163,-500.0,0.00025584,2]
[313834955,1707748289172,-1602.71,0.00025584,2]
[313834956,1707748289183,-1140.13,0.00025584,2]
[313834957,1707748289194,-2106.31,0.00025584,2]
[313834958,1707748289203,-1276.82,0.00025584,2]
[313834959,1707748289213,-11488.97,0.00025584,2]
[313834960,1707748289222,-779.37,0.00025584,2]
[313834961,1707748289232,-522.1,0.00025584,2]
[313834962,1707748289241,-500.0,0.00025584,2]
[313834963,1707748289250,-862.25,0.00025584,2]
[313834964,1707748289259,-954.69,0.00025584,2]
[313834965,1707748289269,-4038.41,0.00025584,2]
[313834966,1707748289279,-2125.47,0.00025584,2]
[313834967,1707748289288,-3098.18,0.00025584,2]
[313834968,1707748289298,-4848.26,0.00025584,2]
[313834969,1707748289309,-1169.49,0.00025584,2]
[313834970,1707748289319,-2525.28,0.00025584,2]
[313834971,1707748289328,-500.0,0.00025587,2]
[313834972,1707748289338,-500.0,0.00025587,2]
[313834973,1707748289347,-597.71,0.00025587,2]
[313834974,1707748289356,-245.69769245,0.00025587,2]
[313834975,1707748289365,-616.03846699,0.00025587,2]
[313834976,1707748289375,-660.1,0.00025587,2]
[313834977,1707748289385,-676.33,0.00025587,2]
[313834978,1707748289394,-500.0,0.00025587,2]
[313834979,1707748289403,-500.0,0.00025587,2]
[313834980,1707748289412,-435.82370234,0.00025587,2]
[313834981,1707748289421,-500.0,0.00025587,2]
[313834982,1707748289430,-500.0,0.00025587,7]
[313834983,1707748289441,-500.0,0.00025587,2]
[313834984,1707748289450,-500.0,0.00025587,2]
[313834985,1707748289459,-526.84,0.00025587,2]
[313834986,1707748289468,-500.0,0.00025587,2]
[313834987,1707748289477,-529.5,0.00025587,2]
[313834988,1707748289488,-500.0,0.00025587,2]
[313834989,1707748289497,-652.95,0.00025587,2]
[313834990,1707748289506,-651.67,0.00025587,2]
[313834991,1707748289515,-567.71,0.00025587,2]
[313834992,1707748289526,-500.0,0.00025587,2]
[313834993,1707748289535,-784.11,0.00025587,2]
[313834994,1707748289544,-524.91,0.00025587,2]
[313834995,1707748289553,-171.33799625,0.00025587,2]
[313834996,1707748289562,-872.77,0.00025587,2]
[313834997,1707748289571,-639.25,0.00025587,2]
[313834998,1707748289581,-500.0,0.00025587,2]
[313834999,1707748289591,-500.0,0.00025587,2]
[313835000,1707748289601,-500.0,0.00025587,2]
[313835001,1707748289611,-1296.69,0.00025587,2]
[313835002,1707748289620,-500.0,0.00025587,2]
[313835003,1707748289630,-517.62,0.00025587,2]
[313835004,1707748289639,-4333.7,0.00025587,2]
[313835005,1707748289649,-1895.9,0.00025587,2]
[313835006,1707748289659,-923.15,0.00025587,2]
[313835007,1707748289669,-1121.1,0.00025587,2]
[313835008,1707748289679,-500.0,0.00025587,2]
[313835009,1707748289689,-500.0,0.00025587,2]
[313835010,1707748289698,-4100.88,0.00025587,2]
[313835011,1707748289708,-500.0,0.00025587,2]
[313835012,1707748289718,-791.85,0.00025587,2]
[313835013,1707748289728,-500.0,0.00025587,2]
[313835014,1707748289737,-1394.8,0.00025587,2]
[313835015,1707748289747,-575.24,0.00025587,2]
[313835016,1707748289756,-715.53,0.00025587,2]
[313835017,1707748289766,-637.77,0.00025587,2]
[313835018,1707748289777,-1763.67,0.00025587,2]
[313835019,1707748289787,-2032.84,0.00025587,2]
[313835020,1707748289797,-686.28,0.00025587,2]
[313835021,1707748289806,-689.11,0.00025587,2]
[313835022,1707748289816,-1500.18,0.00025587,2]
[313835023,1707748289826,-4391.98,0.00025587,2]
[313835024,1707748289836,-500.0,0.00025587,2]
[313835025,1707748289846,-637.5,0.00025587,2]
[313835026,1707748289856,-1040.77,0.00025587,2]
[313835027,1707748289866,-393.61742965,0.00025587,2]
[313835028,1707748289876,-1065.07,0.00025587,2]
[313835029,1707748289885,-500.0,0.00025587,2]
[313835030,1707748289895,-596.16,0.00025587,2]
[313835031,1707748289905,-706.62,0.00025587,2]
[313835032,1707748289915,-500.0,0.00025587,2]
[313835033,1707748289924,-500.0,0.00025587,2]
[313835034,1707748289934,-4062.09,0.00025587,2]
[313835035,1707748289943,-1058.56,0.00025587,2]
[313835036,1707748289954,-721.91,0.00025587,2]
[313835037,1707748289963,-3863.5,0.00025587,2]
[313835038,1707748289973,-500.0,0.00025587,2]
[313835039,1707748289983,-559.05,0.00025587,2]
[313835040,1707748289993,-500.0,0.00025587,2]
[313835041,1707748290003,-500.0,0.00025587,2]
[313835042,1707748290012,-5323.17,0.00025587,2]
[313835043,1707748290022,-500.0,0.00025587,2]
[313835044,1707748290032,-152.34044019,0.00025587,2]
[313835045,1707748290043,-1797.81,0.00025587,2]
[313835046,1707748290053,-500.0,0.00025587,2]
[313835047,1707748290063,-500.0,0.00025587,2]
[313835048,1707748290073,-1838.78,0.00025587,2]
[313835049,1707748290083,-683.21,0.00025587,2]
[313835050,1707748290093,-508.34,0.00025587,2]
[313835051,1707748290103,-945.99,0.00025587,2]
[313835052,1707748290114,-500.0,0.00025587,2]
[313835053,1707748290125,-874.97,0.00025587,2]
[313835054,1707748290135,-500.0,0.00025587,2]
[313835055,1707748290146,-150.0,0.00025587,2]
[313835056,1707748290156,-150.0,0.00025587,2]
[313835057,1707748290167,-2272.98,0.00025587,2]
[313835058,1707748290177,-1286.15,0.00025587,2]
[313835059,1707748290187,-500.0,0.00025587,2]
[313835060,1707748290198,-502.26,0.00025587,2]
[313835061,1707748290207,-1140.72,0.00025587,2]
[313835062,1707748290217,-639.88,0.00025588,2]
[313835063,1707748290227,-500.0,0.00025588,2]
[313835064,1707748290237,-524.07,0.00025588,2]
[313835065,1707748290247,-500.0,0.00025588,2]
[313835066,1707748290256,-859.17,0.00025588,2]
[313835067,1707748290266,-8642.09,0.00025588,2]
[313835068,1707748290278,-500.0,0.00025588,2]
[313835069,1707748290288,-500.0,0.00025588,2]
[313835070,1707748290298,-907.74,0.00025588,2]
[313835071,1707748290308,-659.8,0.00025588,2]
[313835072,1707748290320,-6204.93,0.00025588,2]
[313835073,1707748290330,-500.0,0.00025588,2]
[313835074,1707748290339,-500.0,0.00025588,2]
[313835075,1707748290349,-500.0,0.00025588,2]
[313835076,1707748290360,-1134.83,0.00025588,2]
[313835077,1707748290370,-1147.71,0.00025588,2]
[313835078,1707748290380,-500.0,0.00025588,2]
[313835079,1707748290391,-500.0,0.00025588,2]
[313835080,1707748290401,-2142.38,0.00025588,2]
[313835081,1707748290411,-1578.9,0.00025588,2]
[313835082,1707748290422,-500.0,0.00025588,2]
[313835083,1707748290432,-1527.65,0.00025588,2]
[313835084,1707748290443,-628.61,0.00025588,2]
[313835085,1707748290454,-1715.49,0.00025588,2]
[313835086,1707748290463,-500.0,0.00025588,2]
[313835087,1707748290473,-1537.51,0.00025588,2]
[313835088,1707748290484,-500.0,0.00025588,2]
[313835089,1707748290494,-1757.6,0.00025588,2]
[313835090,1707748290505,-2089.11,0.00025588,2]
[313835091,1707748290515,-1017.68,0.00025588,2]
[313835092,1707748290526,-1161.37,0.00025588,2]
[313835093,1707748290536,-590.03,0.00025588,2]
[313835094,1707748290546,-10286.15,0.00025588,2]
[313835095,1707748290556,-1897.21,0.00025588,2]
[313835096,1707748290566,-500.0,0.00025588,2]
[313835097,1707748290576,-935.54,0.00025588,2]
[313835098,1707748290586,-500.0,0.00025588,2]
[313835099,1707748290596,-7934.79,0.00025588,2]
[313835100,1707748290606,-527.56454142,0.00025588,2]
[313835101,1707748290616,-578.475506,0.00025588,2]
[313835102,1707748290626,-500.0,0.00025588,2]
[313835103,1707748290636,-2190.55,0.00025588,2]
[313835104,1707748290647,-500.0,0.00025588,2]
[313835105,1707748290658,-1376.25,0.00025588,2]
[313835106,1707748290668,-6405.5,0.00025588,2]
[313835107,1707748290678,-500.0,0.00025588,2]
[313835108,1707748290687,-692.19,0.00025588,2]
[313835109,1707748290697,-4161.56,0.00025588,2]
[313835110,1707748290707,-562.21,0.00025588,2]
[313835111,1707748290717,-6881.9652804,0.00025651,2]
[313835112,1707748290726,-1262.54,0.00025669,2]
[313835113,1707748290736,-1207.47,0.00025669,2]
[313835114,1707748290745,-500.0,0.00025669,2]
[313835115,1707748290754,-500.0,0.00025669,2]
[313835116,1707748290764,-581.28,0.00025669,2]
[313835117,1707748290776,-500.0,0.00025669,2]
[313835118,1707748290785,-500.0,0.00025669,2]
[313835119,1707748290794,-500.0,0.00025669,2]
[313835120,1707748290804,-500.0,0.00025669,2]
[313835121,1707748290813,-500.0,0.00025669,2]
[313835122,1707748290823,-500.0,0.00025669,2]
[313835123,1707748290832,-500.0,0.00025669,2]
[313835124,1707748290842,-662.95,0.00025669,2]
[313835125,1707748290851,-500.0,0.00025669,2]
[313835126,1707748290861,-500.0,0.00025669,2]
[313835127,1707748290871,-500.0,0.00025669,2]
[313835128,1707748290881,-500.0,0.00025669,2]
[313835129,1707748290891,-500.0,0.00025669,2]
[313835130,1707748290901,-500.0,0.00025669,2]
[313835131,1707748290911,-785.31,0.00025669,2]
[313835132,1707748290921,-500.0,0.00025669,2]
[313835133,1707748290930,-500.0,0.00025669,2]
[313835134,1707748290941,-1057.6,0.00025669,2]
[313835135,1707748290951,-623.82,0.00025669,2]
[313835136,1707748290960,-500.0,0.00025669,2]
[313835137,1707748290970,-500.0,0.00025669,2]
[313835138,1707748290980,-681.61,0.00025669,2]
[313835139,1707748290990,-500.0,0.00025669,2]
[313835140,1707748291000,-1004.0,0.00025669,2]
[313835141,1707748291009,-500.0,0.00025669,2]
[313835142,1707748291019,-500.0,0.00025669,2]
[313835143,1707748291029,-500.0,0.00025736,2]
[313835144,1707748291039,-42470.57985931,0.00025747,2]
[313835145,1707748291049,-500.0,0.0002576,2]
[313835146,1707748291058,-500.0,0.0002576,2]
[313835147,1707748291068,-1366.1,0.0002576,2]
[313835148,1707748291078,-500.0,0.0002576,2]
[313835149,1707748291087,-2110.37,0.00025776,2]
[313835150,1707748291098,-6142.49,0.00025776,2]
[313835151,1707748291107,-500.0,0.00025776,2]
[313835152,1707748291117,-676.37,0.00025776,2]
[313835153,1707748291126,-1791.31,0.00025776,2]
[313835154,1707748291136,-564.38,0.00025776,2]
[313835155,1707748291146,-2125.32,0.00025776,2]
[313835156,1707748291156,-500.0,0.00025776,2]
[313835157,1707748291167,-746.12,0.00025776,2]
[313835158,1707748291176,-6506.4,0.00025776,2]
[313835159,1707748291186,-746.22,0.00025776,2]
[313835160,1707748291197,-647.45293736,0.00025776,2]
[313835161,1707748291207,-500.0,0.00025776,2]
[313835162,1707748291217,-500.0,0.00025776,2]
[313835163,1707748291227,-500.0,0.00025776,2]
[313835164,1707748291237,-1926.94,0.00025776,2]
[313835165,1707748291247,-500.0,0.00025776,2]
[313835166,1707748291257,-1829.63,0.00025776,2]
[313835167,1707748291266,-504.23,0.00025776,2]
[313835168,1707748291278,-2230.81,0.00025776,2]
[313835169,1707748291287,-500.0,0.00025776,2]
[313835170,1707748291297,-500.0,0.00025776,2]
[313835171,1707748291307,-5597.11,0.00025776,2]
[313835172,1707748291320,-2899.6,0.00025776,2]
[313835173,1707748291329,-500.0,0.00025776,2]
[313835174,1707748291339,-828.89,0.00025776,2]
[313835175,1707748291349,-5812.6876084,0.00025834,2]
[313835176,1707748291360,-2611.65,0.00025858,2]
[313835177,1707748291370,-1871.51,0.00025858,2]
[313835178,1707748291380,-15228.44,0.00025858,2]
[313835179,1707748291391,-1123.04,0.00025858,2]
[313835180,1707748291401,-500.0,0.00025858,2]
[313835181,1707748291411,-669.38,0.00025858,2]
[313835182,1707748291421,-500.0,0.00025858,2]
[313835183,1707748291432,-7454.03,0.00025858,2]
[313835184,1707748291442,-656.99,0.00025858,2]
[313835185,1707748291453,-1132.61,0.00025858,2]
[313835186,1707748291463,-447.02,0.00025858,2]
[313835187,1707748291474,-607.87,0.00025858,2]
[313835188,1707748291484,-2975.67,0.00025858,2]
[313835189,1707748291494,-1380.57,0.00025858,2]
[313835190,1707748291504,-1785.04,0.00025858,2]
[313835191,1707748291514,-500.0,0.00025858,2]
[313835192,1707748291525,-1602.71,0.00025858,2]
[313835193,1707748291535,-1140.13,0.00025858,2]
[313835194,1707748291546,-2106.31,0.00025858,2]
[313835195,1707748291556,-1276.82,0.00025858,2]
[313835196,1707748291566,-11488.97,0.00025858,2]
[313835197,1707748291576,-779.37,0.00025858,2]
[313835198,1707748291586,-522.1,0.00025858,2]
[313835199,1707748291595,-500.0,0.00025858,2]
[313835200,1707748291605,-862.25,0.00025858,2]
[313835201,1707748291615,-954.69,0.00025858,2]
[313835202,1707748291626,-4038.41,0.00025858,2]
[313835203,1707748291636,-2125.47,0.00025858,2]
[313835204,1707748291647,-3098.18,0.00025858,2]
[313835205,1707748291658,-4848.26,0.00025858,2]
[313835206,1707748291668,-1169.49,0.00025858,2]